bitfinex/quotes_SOLUSD_20240708
["timestamp","ask_amount","ask_price","bid_price","bid_amount"]
[1720478659491,16.8059,140.73,140.69,7.1077]
[1720478659871,9.7,140.72,140.68,7.1081]
[1720478660275,9.7,140.71,140.68,7.1081]
[1720478660694,9.7,140.71,140.67,7.1087]
[1720478660877,16.8069,140.71,140.67,7.1087]
[1720478662489,16.8073,140.7,140.66,7.1093]
[1720478662695,9.7,140.69,140.66,7.1093]
[1720478663275,9.7,140.7,140.66,7.1093]
[1720478664899,0.17,140.73,140.66,9.7]
[1720478665193,9.7,140.71,140.66,9.7]
[1720478665598,9.7,140.71,140.67,7.1086]
[1720478665896,9.7,140.71,140.68,7.1083]
[1720478666982,7.1064,140.72,140.68,7.1083]
[1720478667292,9.7,140.71,140.68,7.1083]
[1720478667671,7.1064,140.72,140.68,7.1083]
[1720478667886,9.7,140.71,140.67,7.1086]
[1720478668698,7.276,140.73,140.66,9.7]
[1720478668882,9.7,140.72,140.68,7.1079]
[1720478669085,16.95117397,140.74,140.69,7.1077]
[1720478669474,26.65117397,140.74,140.69,16.8077]
[1720478669874,9.7,140.73,140.69,7.1077]
[1720478670090,16.8058,140.73,140.69,7.1077]
[1720478670970,16.8058,140.73,140.68,16.8082]
[1720478671171,9.84567397,140.74,140.7,7.1068]
[1720478671416,9.7,140.73,140.7,7.1068]
[1720478673602,9.7,140.74,140.71,7.1067]
[1720478673803,9.7,140.74,140.7,15.9679]
[1720478673804,16.8048,140.75,140.7,32.7751]
[1720478673983,9.7,140.74,140.7,23.0751]
[1720478674176,16.8053,140.74,140.7,23.0751]
[1720478675003,17.24210361,140.77,140.7,15.9679]
[1720478675182,9.7,140.75,140.72,7.1058]
[1720478675384,9.7,140.75,140.71,7.1068]
[1720478675577,9.7,140.74,140.71,7.1068]
[1720478676795,7.1045,140.76,140.72,7.1062]
[1720478677007,9.7,140.75,140.72,7.1062]
[1720478677177,9.7,140.75,140.71,7.1066]
[1720478677375,16.8048,140.75,140.71,7.1066]
[1720478677907,9.7,140.75,140.72,7.1062]
[1720478678207,9.7,140.75,140.7,25.6679]
[1720478678921,9.7,140.74,140.7,25.6679]
[1720478679207,9.7,140.74,140.71,7.1065]
[1720478679708,9.7,140.75,140.72,7.1062]
[1720478680009,9.7,140.74,140.72,7.1062]
[1720478680213,17.24210361,140.77,140.73,7.1054]
[1720478680380,24.34600361,140.77,140.72,7.1061]
[1720478680717,9.7,140.75,140.72,7.1061]
[1720478681018,16.94957397,140.77,140.72,7.1061]
[1720478681207,9.7,140.75,140.72,7.1061]
[1720478681882,16.94957397,140.77,140.72,7.1061]
[1720478682083,9.7,140.75,140.72,7.1061]
[1720478682809,9.7,140.74,140.72,7.1061]
[1720478684102,9.7,140.74,140.72,7.1063]
[1720478684525,9.7,140.74,140.71,7.1067]
[1720478686143,16.94967397,140.77,140.72,7.1062]
[1720478686313,9.7,140.74,140.72,7.1062]
[1720478688045,9.7,140.74,140.71,7.1067]
[1720478690635,9.7,140.73,140.7,23.0748]
[1720478690816,9.7,140.73,140.7,15.9679]
[1720478691023,9.7,140.73,140.71,7.1068]
[1720478691328,9.7,140.74,140.71,7.1068]
[1720478693026,16.94957397,140.77,140.72,7.1059]
[1720478693232,9.7,140.75,140.72,7.1059]
[1720478693833,9.7,140.74,140.71,7.1066]
[1720478695141,9.7,140.74,140.7,23.0751]
[1720478695319,9.7,140.73,140.7,23.0751]
[1720478696629,9.7,140.74,140.71,7.1068]
[1720478697722,0.17,140.75,140.71,7.1068]
[1720478697937,9.7,140.74,140.71,7.1068]
[1720478698139,9.7,140.73,140.7,23.075]
[1720478698848,7.4449,140.75,140.7,23.075]
[1720478699137,9.7,140.73,140.7,23.075]
[1720478699353,9.7,140.72,140.7,23.075]
[1720478699512,9.7,140.72,140.69,13.6756]
[1720478699717,9.7,140.72,140.69,7.1077]
[1720478703134,7.1055,140.74,140.69,7.1077]
[1720478703334,7.445,140.75,140.68,9.7]
[1720478703651,9.7,140.73,140.7,7.107]
[1720478703815,20.95508125,140.77,140.68,9.7]
[1720478704020,7.1043,140.76,140.71,7.1066]
[1720478704323,9.7,140.74,140.71,7.1066]
[1720478705036,7.1043,140.76,140.71,7.1066]
[1720478705247,9.7,140.74,140.71,7.1066]
[1720478705744,9.7,140.73,140.69,7.1075]
[1720478705927,9.7,140.73,140.7,7.1072]
[1720478706125,9.7,140.73,140.68,9.7]
[1720478706126,17.23040837,140.77,140.71,7.1067]
[1720478706326,9.7,140.74,140.71,7.1067]
[1720478707647,0.17,140.76,140.67,16.3741]
[1720478707824,9.7,140.73,140.69,7.1074]
[1720478708147,9.7,140.72,140.69,7.1074]
[1720478708752,9.7,140.73,140.69,7.1074]
[1720478709325,9.7,140.72,140.69,7.1074]
[1720478710352,9.7,140.72,140.68,7.1081]
[1720478711552,9.7,140.72,140.69,7.1077]
[1720478711738,9.7,140.72,140.68,7.1081]
[1720478712349,7.1059,140.73,140.68,9.7]
[1720478712350,9.7,140.73,140.68,9.7]
[1720478713750,9.7,140.73,140.7,7.1072]
[1720478714331,7.1053,140.74,140.7,7.1072]
[1720478714531,9.7,140.73,140.7,7.1072]
[1720478714777,7.39487773,140.75,140.71,7.1066]
[1720478715052,9.7,140.75,140.71,7.1066]
[1720478715559,9.7,140.74,140.7,13.1801]
[1720478715734,9.7,140.73,140.7,13.1801]
[1720478716237,9.7,140.73,140.7,6.0729]
[1720478720349,16.8058,140.73,140.68,7.1081]
[1720478720660,16.8058,140.73,140.68,16.8081]
[1720478721152,9.7,140.73,140.68,16.8081]
[1720478722359,16.806,140.73,140.68,16.8081]
[1720478724355,7.1053,140.74,140.69,7.1077]
[1720478724537,9.7,140.73,140.69,7.1077]
[1720478724741,16.8053,140.74,140.69,16.8077]
[1720478725049,0.17,140.73,140.67,16.3741]
[1720478725237,16.8071,140.71,140.67,16.3741]
[1720478726853,16.8071,140.71,140.66,7.1092]
[1720478727257,9.7,140.71,140.66,7.1092]
[1720478728360,9.7,140.7,140.66,7.1092]
[1720478728665,9.7,140.68,140.64,7.1099]
[1720478731561,9.7,140.68,140.64,16.8099]
[1720478731878,7.1075,140.7,140.64,16.8099]
[1720478731879,9.7,140.69,140.64,16.8099]
[1720478732253,9.7,140.69,140.64,7.1099]
[1720478732451,9.7,140.69,140.64,16.8099]
[1720478734291,9.7,140.68,140.64,7.1099]
[1720478737070,9.7,140.68,140.65,7.1098]
[1720478737571,9.7,140.68,140.64,7.1102]
[1720478738774,9.7,140.68,140.64,7.11]
[1720478739973,9.7,140.68,140.65,7.1098]
[1720478740674,7.42079016,140.7,140.65,7.1098]
[1720478740872,9.7,140.69,140.65,7.1098]
[1720478742173,7.42079016,140.7,140.63,15.9743]
[1720478742376,7.2766,140.72,140.67,24.8803]
[1720478742558,9.7,140.71,140.67,24.8803]
[1720478742753,9.7,140.7,140.67,24.8803]
[1720478743380,9.7,140.7,140.67,17.7718]
[1720478747880,9.7,140.69,140.66,7.1091]
[1720478748070,7.59099956,140.72,140.67,17.7719]
[1720478748385,9.7,140.7,140.67,24.8803]
[1720478748583,9.7,140.7,140.67,17.7719]
[1720478750783,9.7,140.7,140.66,7.1092]
[1720478751086,9.7,140.7,140.67,7.1088]
[1720478751468,9.7,140.7,140.66,7.1092]
[1720478752894,17.12103535,140.7,140.66,7.1092]
[1720478753064,7.42103535,140.7,140.66,7.1092]
[1720478753264,17.12103535,140.7,140.66,7.1092]
[1720478756273,7.42103535,140.7,140.66,7.1092]
[1720478756882,17.12103535,140.7,140.66,7.1092]
[1720478758514,9.7,140.7,140.66,7.1092]
[1720478759502,16.8068,140.71,140.66,7.1092]
[1720478762003,16.8068,140.71,140.65,24.8839]
[1720478762004,7.2773,140.7,140.65,24.8839]
[1720478762183,16.9773,140.7,140.65,24.8839]
[1720478762503,9.7,140.7,140.66,7.1092]
[1720478763004,0.17,140.7,140.66,7.1092]
[1720478763203,0.34,140.7,140.66,7.1092]
[1720478763390,9.7,140.7,140.66,7.1092]
[1720478763603,16.8069,140.71,140.66,7.1092]
[1720478764703,0.34,140.7,140.66,7.1092]
[1720478766184,17.1473,140.7,140.66,7.1092]
[1720478767096,10.04,140.7,140.66,7.1092]
[1720478769306,0.17,140.68,140.63,15.9743]
[1720478769481,7.109,140.67,140.61,6.0838]
[1720478769807,9.7,140.66,140.62,7.1112]
[1720478770182,9.7,140.65,140.62,7.1112]
[1720478771678,9.7,140.65,140.6,17.7807]
[1720478771874,9.7,140.65,140.61,7.1115]
[1720478772600,9.7,140.65,140.62,7.1113]
[1720478772788,9.7,140.63,140.6,24.8925]
[1720478773405,9.7,140.62,140.6,24.8925]
[1720478773600,9.7,140.62,140.6,17.7807]
[1720478773907,9.7,140.63,140.6,17.7807]
[1720478774285,9.7,140.62,140.59,7.1128]
[1720478775812,9.7,140.62,140.58,7.1133]
[1720478777317,9.7,140.62,140.57,24.8973]
[1720478777507,9.7,140.62,140.57,34.5973]
[1720478777706,9.7,140.62,140.58,7.1132]
[1720478778017,9.7,140.62,140.57,24.8973]
[1720478778219,9.7,140.61,140.57,24.8973]
[1720478779521,0.17,140.58,140.52,16.0835]
[1720478779699,16.9836,140.58,140.53,7.1154]
[1720478780022,9.7,140.57,140.53,7.1154]
[1720478780516,7.58764668,140.58,140.54,7.1151]
[1720478780724,9.7,140.57,140.54,7.1151]
[1720478782102,0.17,140.58,140.55,7.1148]
[1720478782623,9.87,140.58,140.55,7.1148]
[1720478782808,9.87,140.58,140.54,7.1153]
[1720478783229,9.7,140.57,140.53,17.7891]
[1720478783424,9.7,140.55,140.52,23.1999]
[1720478783612,9.7,140.55,140.5,6.4308]
[1720478783613,9.7,140.55,140.51,16.8167]
[1720478783808,9.7,140.55,140.51,7.1167]
[1720478784021,10.04,140.54,140.5,31.3404]
[1720478784217,9.87,140.54,140.51,7.1168]
[1720478784526,0.17,140.54,140.51,7.1168]
[1720478784820,9.87,140.55,140.51,7.1168]
[1720478785023,0.17,140.56,140.5,17.7926]
[1720478785222,9.87,140.54,140.5,27.4926]
[1720478785424,9.7,140.54,140.5,24.9099]
[1720478785909,9.7,140.54,140.51,7.1167]
[1720478786525,0.17,140.53,140.5,24.9099]
[1720478786820,9.7,140.54,140.51,7.1169]
[1720478787208,9.7,140.54,140.5,24.91]
[1720478787700,9.87,140.53,140.5,24.91]
[1720478787904,0.17,140.53,140.5,24.91]
[1720478788101,9.87,140.53,140.5,24.91]
[1720478788405,9.7,140.52,140.48,24.244571]
[1720478788623,9.7,140.51,140.48,24.244571]
[1720478788811,0.17,140.5,140.48,0.885271]
[1720478789330,9.87,140.5,140.48,0.885271]
[1720478789901,16.3567,140.5,140.48,0.885271]
[1720478790102,9.87,140.49,140.44,7.12]
[1720478790303,9.7,140.47,140.44,7.12]
[1720478790516,9.7,140.47,140.43,24.9226]
[1720478790923,9.7,140.46,140.43,24.9226]
[1720478791313,9.7,140.46,140.42,7.1214]
[1720478791832,9.7,140.46,140.41,9.7]
[1720478791833,9.7,140.46,140.43,7.1207]
[1720478792134,0.17,140.49,140.45,17.7987]
[1720478792304,9.7,140.48,140.45,17.7987]
[1720478793143,9.7,140.47,140.43,7.1208]
[1720478793932,7.2884,140.48,140.43,7.1208]
[1720478794234,0.17,140.48,140.44,7.1203]
[1720478794416,9.87,140.48,140.44,7.1203]
[1720478794621,9.7,140.47,140.44,7.1203]
[1720478795919,0.17,140.48,140.44,7.1203]
[1720478796134,9.7,140.47,140.44,7.1203]
[1720478797115,9.7,140.47,140.43,7.1208]
[1720478797721,9.7,140.47,140.44,7.1204]
[1720478798213,9.7,140.47,140.44,6.6204]
[1720478798409,9.7,140.47,140.43,7.1208]
[1720478798643,16.819,140.47,140.42,24.9239]
[1720478798839,16.819,140.47,140.42,34.6239]
[1720478799141,16.819,140.47,140.42,24.9239]
[1720478799342,9.7,140.46,140.43,7.1209]
[1720478800040,7.2885,140.48,140.43,7.1209]
[1720478800041,9.7,140.47,140.43,7.1209]
[1720478800225,9.7,140.48,140.44,17.8007]
[1720478800567,17.50000255,140.51,140.46,24.9176]
[1720478800714,9.7,140.5,140.46,17.7983]
[1720478801435,9.7,140.49,140.44,9.7]
[1720478801752,9.7,140.49,140.45,7.1198]
[1720478805339,9.7,140.49,140.46,7.1194]
[1720478805546,9.7,140.49,140.44,9.7]
[1720478805733,9.7,140.49,140.46,24.9177]
[1720478806124,9.87,140.48,140.45,7.1199]
[1720478806335,9.87,140.48,140.44,7.1203]
[1720478806735,9.87,140.48,140.44,24.9213]
[1720478807252,9.87,140.49,140.45,7.1199]
[1720478807544,9.7,140.47,140.44,17.801]
[1720478808347,0.17,140.48,140.42,24.9249]
[1720478808348,9.7,140.45,140.42,24.9249]
[1720478808723,9.7,140.45,140.4,16.8221]
[1720478808941,9.7,140.45,140.4,9.7]
[1720478809351,0.17,140.44,140.4,9.7]
[1720478809521,0.17,140.44,140.41,7.1217]
[1720478809846,0.34,140.44,140.41,7.1217]
[1720478810148,0.34,140.44,140.42,7.1214]
[1720478811350,0.34,140.44,140.41,7.1218]
[1720478812347,9.7,140.45,140.4,27.506]
[1720478812348,9.7,140.45,140.42,7.1213]
[1720478812549,0.17,140.44,140.41,7.1219]
[1720478812754,9.87,140.44,140.41,7.1219]
[1720478814656,0.17,140.45,140.4,17.806]
[1720478814944,10.04,140.45,140.41,7.1218]
[1720478815122,0.34,140.45,140.41,7.1218]
[1720478815325,10.04,140.45,140.41,7.1218]
[1720478816023,0.17,140.45,140.42,7.1211]
[1720478816229,9.7,140.48,140.43,9.7]
[1720478816446,9.7,140.48,140.44,7.1201]
[1720478816637,9.7,140.47,140.44,7.1201]
[1720478816842,7.41796825,140.49,140.44,9.7]
[1720478817141,9.7,140.49,140.46,7.1191]
[1720478817531,10.2238331,140.5,140.47,7.1189]
[1720478817722,10.2238331,140.5,140.46,32.2821]
[1720478817928,19.9238331,140.5,140.45,7.1199]
[1720478818338,9.7,140.49,140.45,7.1199]
[1720478818955,10.2238331,140.5,140.46,7.1193]
[1720478819153,9.7,140.5,140.46,7.1193]
[1720478819478,34.31751752,140.51,140.46,16.8193]
[1720478820346,9.7,140.5,140.46,7.1193]
[1720478820768,17.50041752,140.51,140.46,9.7]
[1720478820939,7.41736473,140.51,140.5,7.1174]
[1720478821135,272.0467,140.6,140.5,9.7]
[1720478821436,9.7,140.61,140.56,9.7]
[1720478821637,6.0054,140.68,140.59,7.1128]
[1720478821951,7.1109,140.63,140.58,7.1133]
[1720478822154,9.7,140.62,140.57,25.3821]
[1720478822341,9.7,140.62,140.57,9.7]
[1720478822669,6.5139,140.7,140.61,16.8118]
[1720478822962,16.8084,140.68,140.63,9.7]
[1720478823138,7.41589366,140.69,140.64,16.8099]
[1720478823337,17.11589366,140.69,140.64,16.8099]
[1720478823836,7.41589366,140.69,140.65,9.7]
[1720478824237,7.41589366,140.69,140.63,17.7762]
[1720478824435,7.41589366,140.69,140.63,16.8108]
[1720478824634,14.52379366,140.69,140.64,7.1103]
[1720478825257,14.52379366,140.69,140.63,7.1108]
[1720478826746,7.1069,140.71,140.65,7.1098]
[1720478827537,14.52140624,140.73,140.66,17.7725]
[1720478827742,7.1066,140.72,140.66,24.8817]
[1720478828053,7.1066,140.72,140.67,7.1087]
[1720478828257,7.1058,140.73,140.68,7.1082]
[1720478828438,7.1055,140.74,140.68,7.1082]
[1720478828641,7.1063,140.72,140.66,24.393]
[1720478828942,25.17722825,140.76,140.66,24.393]
[1720478829141,7.1055,140.74,140.68,7.1079]
[1720478829347,7.1062,140.73,140.67,7.1087]
[1720478829566,7.1066,140.72,140.66,31.5022]
[1720478829866,7.1078,140.69,140.63,6.6205]
[1720478830067,17.7635,140.74,140.64,7.1102]
[1720478830068,7.1075,140.7,140.64,7.1102]
[1720478830246,7.1075,140.7,140.65,7.1097]
[1720478830661,0.17,140.73,140.63,24.3968]
[1720478830861,7.1075,140.7,140.63,24.3968]
[1720478831175,0.17,140.71,140.6,33.7642]
[1720478831468,17.7688,140.7,140.6,33.7642]
[1720478831664,0.17,140.69,140.62,17.778]
[1720478831842,7.1079,140.69,140.62,17.778]
[1720478832242,7.447,140.71,140.65,7.1095]
[1720478832638,7.1075,140.7,140.65,7.1095]
[1720478833144,0.34,140.71,140.66,7.1093]
[1720478833361,0.17,140.71,140.66,7.1093]
[1720478833562,7.1063,140.72,140.67,7.1086]
[1720478833862,7.1063,140.72,140.66,7.1092]
[1720478834075,7.1069,140.71,140.66,7.1092]
[1720478835673,7.1069,140.71,140.66,24.882]
[1720478838271,7.1065,140.72,140.66,24.882]
[1720478838650,7.1065,140.72,140.67,7.1087]
[1720478838880,7.1058,140.73,140.68,7.1081]
[1720478839059,7.75723608,140.74,140.68,7.1081]
[1720478839243,7.75723608,140.74,140.67,7.1087]
[1720478839443,7.75723608,140.74,140.66,24.882]
[1720478839647,7.1069,140.71,140.64,17.7757]
[1720478839976,7.1069,140.71,140.66,7.1092]
[1720478840161,7.1069,140.71,140.66,7.109]
[1720478840162,7.1071,140.71,140.66,7.109]
[1720478840661,7.1065,140.72,140.66,24.8818]
[1720478840862,7.1065,140.72,140.67,7.1087]
[1720478841977,14.52283608,140.74,140.69,7.1076]
[1720478842161,7.1051,140.75,140.7,7.1073]
[1720478842348,30.00145613,140.76,140.7,24.8754]
[1720478842551,7.41975613,140.76,140.68,0.17]
[1720478842771,7.1028,140.79,140.74,24.8681]
[1720478844256,7.1038,140.77,140.72,24.8718]
[1720478844450,7.104,140.77,140.71,17.7669]
[1720478844647,7.1043,140.76,140.71,17.7669]
[1720478844973,7.1048,140.75,140.7,7.1071]
[1720478845486,7.1045,140.76,140.7,7.1071]
[1720478846276,7.1049,140.75,140.7,7.1071]
[1720478846878,0.17,140.77,140.69,17.7694]
[1720478847088,7.1067,140.72,140.67,23.5959]
[1720478847375,7.1056,140.74,140.68,7.1082]
[1720478847573,0.17,140.75,140.67,16.4874]
[1720478847776,15.5914,140.76,140.71,7.1064]
[1720478847980,7.1045,140.76,140.71,7.1064]
[1720478848162,0.17,140.75,140.71,7.1064]
[1720478849492,0.17,140.77,140.72,7.1062]
[1720478849675,7.1038,140.77,140.72,7.1062]
[1720478850591,7.1034,140.78,140.72,7.1062]
[1720478850768,7.1034,140.78,140.73,7.1057]
[1720478850961,13.77592342,140.81,140.74,7.1052]
[1720478851287,7.42282342,140.81,140.73,17.7642]
[1720478851590,7.103,140.79,140.74,7.1052]
[1720478852099,7.42282342,140.81,140.72,6.4496]
[1720478852100,7.1042,140.77,140.72,6.4496]
[1720478852260,25.17772342,140.81,140.72,6.4496]
[1720478852661,0.34,140.8,140.72,24.2151]
[1720478852966,7.1029,140.79,140.73,7.1053]
[1720478853197,7.4426,140.8,140.74,7.1049]
[1720478853365,14.86575977,140.8,140.74,7.1049]
[1720478853573,7.1033,140.78,140.72,31.3209]
[1720478855678,7.1033,140.78,140.73,7.1057]
[1720478855877,16.62504804,140.8,140.71,7.1065]
[1720478856085,7.1039,140.77,140.72,7.1062]
[1720478856288,7.1044,140.76,140.7,17.7682]
[1720478856468,7.1048,140.75,140.7,17.7682]
[1720478856667,7.1048,140.75,140.7,24.8753]
[1720478857492,7.1045,140.76,140.7,24.8753]
[1720478857679,7.1045,140.76,140.71,7.1067]
[1720478857886,7.104,140.77,140.71,7.1067]
[1720478858183,0.34,140.78,140.71,7.1067]
[1720478858184,7.1043,140.76,140.71,7.1067]
[1720478858875,25.00665892,140.8,140.72,16.0745]
[1720478859270,7.1033,140.78,140.73,7.1054]
[1720478860482,7.1042,140.77,140.72,33.8399]
[1720478860788,7.1042,140.77,140.72,40.9459]
[1720478861970,7.1043,140.76,140.72,16.0745]
[1720478862286,0.17,140.77,140.69,33.8472]
[1720478862467,0.34,140.78,140.69,33.8472]
[1720478863066,7.1041,140.77,140.72,7.1061]
[1720478863265,0.17,140.78,140.71,17.7665]
[1720478863481,0.34,140.79,140.71,17.7665]
[1720478864274,7.1041,140.77,140.72,7.1062]
[1720478865691,18.0971,140.79,140.69,16.0787]
[1720478866014,0.17,140.76,140.69,16.0787]
[1720478866228,7.1064,140.72,140.67,7.1087]
[1720478866513,0.34,140.76,140.69,7.1078]
[1720478866695,7.1058,140.73,140.68,17.7706]
[1720478867015,7.1058,140.73,140.68,24.8786]
[1720478867910,0.17,140.74,140.69,7.1074]
[1720478868423,7.2756,140.74,140.69,7.1074]
[1720478868602,7.1058,140.73,140.69,7.1074]
[1720478868793,7.1063,140.72,140.68,24.8789]
[1720478868989,7.1063,140.72,140.68,17.7706]
[1720478869517,7.106,140.73,140.68,17.7706]
[1720478869699,7.106,140.73,140.68,24.8787]
[1720478870309,0.34,140.74,140.69,7.1077]
[1720478870310,7.4454,140.74,140.69,7.1077]
[1720478872219,7.1048,140.75,140.7,7.107]
[1720478873494,0.17,140.74,140.7,7.107]
[1720478873691,22.458,140.77,140.65,22.5256]
[1720478873922,0.17,140.76,140.66,0.17]
[1720478874126,7.1044,140.76,140.72,17.7656]
[1720478875603,16.2848258,140.78,140.71,7.1065]
[1720478875604,0.17,140.77,140.71,7.1065]
[1720478875791,0.17,140.77,140.69,17.7683]
[1720478875792,0.34,140.77,140.69,17.7683]
[1720478875993,0.34,140.77,140.7,7.1072]
[1720478875994,7.1051,140.75,140.7,7.1072]
[1720478876195,7.1053,140.74,140.7,7.1072]
[1720478877900,7.275,140.75,140.7,7.1072]
[1720478878613,0.17,140.75,140.67,17.7719]
[1720478878800,0.34,140.75,140.65,22.5256]
[1720478879712,7.4449,140.75,140.7,7.1072]
[1720478880521,0.34,140.75,140.71,17.7666]
[1720478880724,0.34,140.75,140.71,24.8733]
[1720478881018,0.34,140.75,140.69,24.877]
[1720478881227,7.1055,140.74,140.69,24.877]
[1720478881728,0.34,140.75,140.66,17.7721]
[1720478881933,7.1072,140.71,140.66,24.8813]
[1720478882226,7.1064,140.72,140.67,7.1088]
[1720478882405,0.17,140.74,140.7,7.1073]
[1720478882609,0.34,140.74,140.69,7.1076]
[1720478882823,0.34,140.74,140.68,7.1082]
[1720478883120,7.1071,140.71,140.66,7.1088]
[1720478884220,7.4465,140.72,140.67,7.1088]
[1720478884736,7.1068,140.71,140.66,7.1092]
[1720478884904,0.34,140.72,140.61,16.4038]
[1720478884905,7.1098,140.65,140.61,16.4038]
[1720478885103,7.1098,140.65,140.6,17.78]
[1720478885104,7.1093,140.66,140.62,7.1113]
[1720478885529,7.1093,140.66,140.61,7.1117]
[1720478886428,0.17,140.68,140.6,17.78]
[1720478886631,0.17,140.68,140.6,24.8923]
[1720478886632,7.11,140.65,140.6,24.8923]
[1720478886802,7.111,140.63,140.58,23.5167]
[1720478886998,0.17,140.64,140.59,7.1127]
[1720478886999,7.2804,140.64,140.59,7.1127]
[1720478887333,0.17,140.64,140.58,17.7832]
[1720478887623,7.1109,140.63,140.58,24.8962]
[1720478888620,7.2805,140.64,140.59,7.1128]
[1720478889400,0.17,140.65,140.6,7.1123]
[1720478889709,65.45171773,140.67,140.61,7.1117]
[1720478889710,47.67871773,140.67,140.61,7.1117]
[1720478889911,7.1096,140.66,140.61,7.1117]
[1720478890923,27.91733252,140.66,140.61,7.1117]
[1720478891116,0.17,140.65,140.57,17.7835]
[1720478891326,11.02963051,140.65,140.57,17.7835]
[1720478891817,21.14773252,140.65,140.57,17.7835]
[1720478893035,7.1113,140.63,140.58,7.113]
[1720478893433,7.1105,140.64,140.59,7.1128]
[1720478893737,0.17,140.63,140.59,7.1128]
[1720478895646,20.97773252,140.65,140.56,6.0983]
[1720478896346,7.42098521,140.67,140.65,7.1094]
[1720478896528,7.1075,140.7,140.65,7.1094]
[1720478896923,7.1078,140.69,140.64,24.886]
[1720478897348,9.55664645,140.69,140.58,34.7097]
[1720478897531,0.17,140.68,140.58,34.7097]
[1720478897729,7.1094,140.66,140.61,7.1115]
[1720478898130,7.1094,140.66,140.61,24.89]
[1720478900958,7.109,140.67,140.62,7.1113]
[1720478901251,0.17,140.66,140.62,7.1113]
[1720478901435,0.17,140.66,140.63,7.1107]
[1720478901836,0.34,140.67,140.63,7.1107]
[1720478902346,7.2788,140.67,140.63,7.1107]
[1720478902537,0.17,140.66,140.63,7.1107]
[1720478902724,0.17,140.66,140.61,17.7785]
[1720478902725,26.2883233,140.69,140.64,7.1102]
[1720478902933,7.2783,140.68,140.63,7.1107]
[1720478903331,7.2783,140.68,140.63,24.8874]
[1720478904635,7.1089,140.67,140.63,17.7767]
[1720478905056,7.2785,140.68,140.63,24.8875]
[1720478905254,7.1088,140.67,140.62,7.1113]
[1720478905429,0.17,140.68,140.61,24.8912]
[1720478905633,7.1096,140.66,140.61,24.8912]
[1720478906142,7.28,140.65,140.61,17.7794]
[1720478906347,7.11,140.65,140.61,17.7794]
[1720478907057,7.11,140.65,140.61,24.8912]
[1720478907351,7.4496,140.66,140.61,24.8912]
[1720478908158,7.41711236,140.67,140.62,7.1109]
[1720478908335,0.17,140.66,140.62,7.1109]
[1720478908651,7.41711236,140.67,140.63,17.7767]
[1720478908861,26.2882233,140.69,140.64,7.1102]
[1720478909766,7.1083,140.68,140.64,7.1102]
[1720478910063,7.2783,140.68,140.64,7.1102]
[1720478910240,7.41783365,140.7,140.68,7.1078]
[1720478910442,16.72917685,140.74,140.69,7.1077]
[1720478910751,7.41818545,140.73,140.69,24.8772]
[1720478910950,7.1064,140.72,140.67,17.772]